Workbook

Sheet Superfície de Vol USD Original
A1: 2022-04-01 | B1: 1 | C1: 5 | D1: 10 | E1: 25 | F1: 37 | G1: 50 | H1: 63 | I1: 75 | J1: 90 | K1: 95 | L1: 99
A2: 2022-04-01 | B2: 21.55 | C2: 21.43277217 | D2: 21.24120456 | E2: 20.13880468 | F2: 19.66642029 | G2: 19.1960203 | H2: 19.19879996 | I2: 19.02733507 | J2: 19.45619945 | K2: 19.5221396 | L2: 19.56072423
A3: 2022-05-02 | B3: 21.69655299 | C3: 21.13822331 | D3: 20.4921802 | E3: 18.87403449 | F3: 18.28080318 | G3: 17.74185212 | H3: 17.36948863 | I3: 17.38790508 | J3: 17.68908853 | K3: 17.95242038 | L3: 18.25751797
A4: 2022-06-01 | B4: 22.90496483 | C4: 22.28231051 | D4: 21.57795907 | E4: 19.90582091 | F4: 18.79168304 | G4: 18.27053331 | H4: 17.95082758 | I4: 17.80342945 | J4: 18.14673857 | K4: 18.39977614 | L4: 18.67723738
A5: 2022-07-01 | B5: 23.48472784 | C5: 22.78193141 | D5: 21.9932135 | E5: 20.15590713 | F5: 18.89914728 | G5: 18.28885492 | H5: 17.8887838 | I5: 17.65679004 | J5: 17.87769172 | K5: 18.13499915 | L5: 18.45778518
A6: 2022-08-01 | B6: 24.07239154 | C6: 23.27969423 | D6: 22.40248848 | E6: 20.42665695 | F6: 19.06212935 | G6: 18.39431464 | H6: 17.96564211 | I6: 17.70462093 | J6: 17.93385047 | K6: 18.22869743 | L6: 18.60747565
A7: 2022-09-01 | B7: 24.46495342 | C7: 23.66346014 | D7: 22.73705872 | E7: 20.42263177 | F7: 19.3827676 | G7: 18.52178836 | H7: 17.99306489 | I7: 17.89509977 | J7: 18.15188476 | K7: 18.44959142 | L7: 18.82262102
A8: 2022-10-03 | B8: 24.76356496 | C8: 23.93899288 | D8: 22.99218301 | E8: 20.6633373 | F8: 19.71833466 | G8: 18.91485656 | H8: 18.4655447 | I8: 18.17549719 | J8: 18.34733444 | K8: 18.63457138 | L8: 19.02418069
A9: 2022-11-01 | B9: 25.06148386 | C9: 24.22291711 | D9: 23.31233439 | E9: 21.35298653 | F9: 19.9354715 | G9: 19.22965849 | H9: 18.76647764 | I9: 18.45555104 | J9: 18.57732518 | K9: 18.83571764 | L9: 19.20047054
A10: 2022-12-01 | B10: 25.04041258 | C10: 24.31422439 | D10: 23.42053549 | E10: 20.83496448 | F10: 19.75996028 | G10: 19.05192314 | H10: 18.59297914 | I10: 18.29413729 | J10: 18.45702277 | K10: 18.75285571 | L10: 19.16012477
A11: 2023-01-02 | B11: 25.60606205 | C11: 24.80060386 | D11: 23.85489749 | E11: 21.40339579 | F11: 20.29095051 | G11: 19.55634882 | H11: 19.06743723 | I11: 18.74083203 | J11: 18.87689092 | K11: 19.12879093 | L11: 19.47671847
A12: 2023-03-01 | B12: 25.73962448 | C12: 24.87714731 | D12: 23.91297996 | E12: 21.68772555 | F12: 20.13787891 | G12: 19.3558523 | H12: 18.8848935 | I12: 18.53782975 | J12: 18.73942059 | K12: 19.02308796 | L12: 19.39485579
A13: 2023-04-03 | B13: 25.62187542 | C13: 24.72766175 | D13: 23.6988934 | E13: 21.15683222 | F13: 20.00406034 | G13: 19.23710897 | H13: 18.73802728 | I13: 18.40516423 | J13: 18.60945904 | K13: 18.89664243 | L13: 19.27293716
A14: 2023-07-03 | B14: 25.79798689 | C14: 24.91713603 | D14: 23.87863 | E14: 21.1603656 | F14: 19.95135146 | G14: 19.14068718 | H14: 18.66483196 | I14: 18.3148075 | J14: 18.57673517 | K14: 18.88842445 | L14: 19.28150244
A15: 2023-10-02 | B15: 25.8786372 | C15: 25.07866026 | D15: 24.0943514 | E15: 21.24787385 | F15: 20.02773227 | G15: 19.21929461 | H15: 18.71772791 | I15: 18.3554797 | J15: 18.56152459 | K15: 18.85755606 | L15: 19.24724727
A16: 2024-01-02 | B16: 26.16504557 | C16: 25.35454812 | D16: 24.35689919 | E16: 21.46918155 | F16: 20.22144438 | G16: 19.39312522 | H16: 18.87480853 | I16: 18.49555454 | J16: 18.67915124 | K16: 18.96725516 | L16: 19.35336598
A17: 2024-04-01 | B17: 25.94494141 | C17: 25.06470568 | D17: 24.02116213 | E17: 21.2540443 | F17: 20.0132178 | G17: 19.19636219 | H17: 18.69440809 | I17: 18.33525796 | J17: 18.56057595 | K17: 18.86396165 | L17: 19.2577664
A18: 2024-07-01 | B18: 26.72710032 | C18: 25.83302136 | D18: 24.79167291 | E18: 22.14278583 | F18: 20.5428189 | G18: 19.33026644 | H18: 18.65928881 | I18: 18.52061257 | J18: 18.9961957 | K18: 19.3044901 | L18: 19.62764074

Sheet Superfície de Vol Dias Úteis
A1: 2022-04-01 | B1: Prazo | C1: ='Superfície de Vol USD Original'!B1/100 -> 0.01 | D1: ='Superfície de Vol USD Original'!C1/100 -> 0.05 | E1: ='Superfície de Vol USD Original'!D1/100 -> 0.1 | F1: ='Superfície de Vol USD Original'!E1/100 -> 0.25 | G1: ='Superfície de Vol USD Original'!F1/100 -> 0.37 | H1: ='Superfície de Vol USD Original'!G1/100 -> 0.5 | I1: ='Superfície de Vol USD Original'!H1/100 -> 0.63 | J1: ='Superfície de Vol USD Original'!I1/100 -> 0.75 | K1: ='Superfície de Vol USD Original'!J1/100 -> 0.9 | L1: ='Superfície de Vol USD Original'!K1/100 -> 0.95 | M1: ='Superfície de Vol USD Original'!L1/100 -> 0.99
A2: 2022-04-01 | B2: =NETWORKDAYS($A$1,A2,'Tabela de Feriados'!$A$2:$A$937)-1 -> 0 | C2: ='Superfície de Vol USD Original'!B2/100 -> 0.2155 | D2: ='Superfície de Vol USD Original'!C2/100 -> 0.2143277217 | E2: ='Superfície de Vol USD Original'!D2/100 -> 0.2124120456 | F2: ='Superfície de Vol USD Original'!E2/100 -> 0.2013880468 | G2: ='Superfície de Vol USD Original'!F2/100 -> 0.1966642029 | H2: ='Superfície de Vol USD Original'!G2/100 -> 0.191960203 | I2: ='Superfície de Vol USD Original'!H2/100 -> 0.1919879996 | J2: ='Superfície de Vol USD Original'!I2/100 -> 0.1902733507 | K2: ='Superfície de Vol USD Original'!J2/100 -> 0.1945619945 | L2: ='Superfície de Vol USD Original'!K2/100 -> 0.195221396 | M2: ='Superfície de Vol USD Original'!L2/100 -> 0.1956072423
A3: 2022-05-02 | B3: =NETWORKDAYS($A$1,A3,'Tabela de Feriados'!$A$2:$A$937)-1 -> 19 | C3: ='Superfície de Vol USD Original'!B3/100 -> 0.2169655299 | D3: ='Superfície de Vol USD Original'!C3/100 -> 0.2113822331 | E3: ='Superfície de Vol USD Original'!D3/100 -> 0.204921802 | F3: ='Superfície de Vol USD Original'!E3/100 -> 0.1887403449 | G3: ='Superfície de Vol USD Original'!F3/100 -> 0.1828080318 | H3: ='Superfície de Vol USD Original'!G3/100 -> 0.1774185212 | I3: ='Superfície de Vol USD Original'!H3/100 -> 0.1736948863 | J3: ='Superfície de Vol USD Original'!I3/100 -> 0.1738790508 | K3: ='Superfície de Vol USD Original'!J3/100 -> 0.1768908853 | L3: ='Superfície de Vol USD Original'!K3/100 -> 0.1795242038 | M3: ='Superfície de Vol USD Original'!L3/100 -> 0.1825751797
A4: 2022-06-01 | B4: =NETWORKDAYS($A$1,A4,'Tabela de Feriados'!$A$2:$A$937)-1 -> 41 | C4: ='Superfície de Vol USD Original'!B4/100 -> 0.2290496483 | D4: ='Superfície de Vol USD Original'!C4/100 -> 0.2228231051 | E4: ='Superfície de Vol USD Original'!D4/100 -> 0.2157795907 | F4: ='Superfície de Vol USD Original'!E4/100 -> 0.1990582091 | G4: ='Superfície de Vol USD Original'!F4/100 -> 0.1879168304 | H4: ='Superfície de Vol USD Original'!G4/100 -> 0.1827053331 | I4: ='Superfície de Vol USD Original'!H4/100 -> 0.1795082758 | J4: ='Superfície de Vol USD Original'!I4/100 -> 0.1780342945 | K4: ='Superfície de Vol USD Original'!J4/100 -> 0.1814673857 | L4: ='Superfície de Vol USD Original'!K4/100 -> 0.1839977614 | M4: ='Superfície de Vol USD Original'!L4/100 -> 0.1867723738
A5: 2022-07-01 | B5: =NETWORKDAYS($A$1,A5,'Tabela de Feriados'!$A$2:$A$937)-1 -> 62 | C5: ='Superfície de Vol USD Original'!B5/100 -> 0.2348472784 | D5: ='Superfície de Vol USD Original'!C5/100 -> 0.2278193141 | E5: ='Superfície de Vol USD Original'!D5/100 -> 0.219932135 | F5: ='Superfície de Vol USD Original'!E5/100 -> 0.2015590713 | G5: ='Superfície de Vol USD Original'!F5/100 -> 0.1889914728 | H5: ='Superfície de Vol USD Original'!G5/100 -> 0.1828885492 | I5: ='Superfície de Vol USD Original'!H5/100 -> 0.178887838 | J5: ='Superfície de Vol USD Original'!I5/100 -> 0.1765679004 | K5: ='Superfície de Vol USD Original'!J5/100 -> 0.1787769172 | L5: ='Superfície de Vol USD Original'!K5/100 -> 0.1813499915 | M5: ='Superfície de Vol USD Original'!L5/100 -> 0.1845778518
A6: 2022-08-01 | B6: =NETWORKDAYS($A$1,A6,'Tabela de Feriados'!$A$2:$A$937)-1 -> 83 | C6: ='Superfície de Vol USD Original'!B6/100 -> 0.2407239154 | D6: ='Superfície de Vol USD Original'!C6/100 -> 0.2327969423 | E6: ='Superfície de Vol USD Original'!D6/100 -> 0.2240248848 | F6: ='Superfície de Vol USD Original'!E6/100 -> 0.2042665695 | G6: ='Superfície de Vol USD Original'!F6/100 -> 0.1906212935 | H6: ='Superfície de Vol USD Original'!G6/100 -> 0.1839431464 | I6: ='Superfície de Vol USD Original'!H6/100 -> 0.1796564211 | J6: ='Superfície de Vol USD Original'!I6/100 -> 0.1770462093 | K6: ='Superfície de Vol USD Original'!J6/100 -> 0.1793385047 | L6: ='Superfície de Vol USD Original'!K6/100 -> 0.1822869743 | M6: ='Superfície de Vol USD Original'!L6/100 -> 0.1860747565
A7: 2022-09-01 | B7: =NETWORKDAYS($A$1,A7,'Tabela de Feriados'!$A$2:$A$937)-1 -> 106 | C7: ='Superfície de Vol USD Original'!B7/100 -> 0.2446495342 | D7: ='Superfície de Vol USD Original'!C7/100 -> 0.2366346014 | E7: ='Superfície de Vol USD Original'!D7/100 -> 0.2273705872 | F7: ='Superfície de Vol USD Original'!E7/100 -> 0.2042263177 | G7: ='Superfície de Vol USD Original'!F7/100 -> 0.193827676 | H7: ='Superfície de Vol USD Original'!G7/100 -> 0.1852178836 | I7: ='Superfície de Vol USD Original'!H7/100 -> 0.1799306489 | J7: ='Superfície de Vol USD Original'!I7/100 -> 0.1789509977 | K7: ='Superfície de Vol USD Original'!J7/100 -> 0.1815188476 | L7: ='Superfície de Vol USD Original'!K7/100 -> 0.1844959142 | M7: ='Superfície de Vol USD Original'!L7/100 -> 0.1882262102
A8: 2022-10-03 | B8: =NETWORKDAYS($A$1,A8,'Tabela de Feriados'!$A$2:$A$937)-1 -> 127 | C8: ='Superfície de Vol USD Original'!B8/100 -> 0.2476356496 | D8: ='Superfície de Vol USD Original'!C8/100 -> 0.2393899288 | E8: ='Superfície de Vol USD Original'!D8/100 -> 0.2299218301 | F8: ='Superfície de Vol USD Original'!E8/100 -> 0.206633373 | G8: ='Superfície de Vol USD Original'!F8/100 -> 0.1971833466 | H8: ='Superfície de Vol USD Original'!G8/100 -> 0.1891485656 | I8: ='Superfície de Vol USD Original'!H8/100 -> 0.184655447 | J8: ='Superfície de Vol USD Original'!I8/100 -> 0.1817549719 | K8: ='Superfície de Vol USD Original'!J8/100 -> 0.1834733444 | L8: ='Superfície de Vol USD Original'!K8/100 -> 0.1863457138 | M8: ='Superfície de Vol USD Original'!L8/100 -> 0.1902418069
A9: 2022-11-01 | B9: =NETWORKDAYS($A$1,A9,'Tabela de Feriados'!$A$2:$A$937)-1 -> 147 | C9: ='Superfície de Vol USD Original'!B9/100 -> 0.2506148386 | D9: ='Superfície de Vol USD Original'!C9/100 -> 0.2422291711 | E9: ='Superfície de Vol USD Original'!D9/100 -> 0.2331233439 | F9: ='Superfície de Vol USD Original'!E9/100 -> 0.2135298653 | G9: ='Superfície de Vol USD Original'!F9/100 -> 0.199354715 | H9: ='Superfície de Vol USD Original'!G9/100 -> 0.1922965849 | I9: ='Superfície de Vol USD Original'!H9/100 -> 0.1876647764 | J9: ='Superfície de Vol USD Original'!I9/100 -> 0.1845555104 | K9: ='Superfície de Vol USD Original'!J9/100 -> 0.1857732518 | L9: ='Superfície de Vol USD Original'!K9/100 -> 0.1883571764 | M9: ='Superfície de Vol USD Original'!L9/100 -> 0.1920047054
A10: 2022-12-01 | B10: =NETWORKDAYS($A$1,A10,'Tabela de Feriados'!$A$2:$A$937)-1 -> 167 | C10: ='Superfície de Vol USD Original'!B10/100 -> 0.2504041258 | D10: ='Superfície de Vol USD Original'!C10/100 -> 0.2431422439 | E10: ='Superfície de Vol USD Original'!D10/100 -> 0.2342053549 | F10: ='Superfície de Vol USD Original'!E10/100 -> 0.2083496448 | G10: ='Superfície de Vol USD Original'!F10/100 -> 0.1975996028 | H10: ='Superfície de Vol USD Original'!G10/100 -> 0.1905192314 | I10: ='Superfície de Vol USD Original'!H10/100 -> 0.1859297914 | J10: ='Superfície de Vol USD Original'!I10/100 -> 0.1829413729 | K10: ='Superfície de Vol USD Original'!J10/100 -> 0.1845702277 | L10: ='Superfície de Vol USD Original'!K10/100 -> 0.1875285571 | M10: ='Superfície de Vol USD Original'!L10/100 -> 0.1916012477
A11: 2023-01-02 | B11: =NETWORKDAYS($A$1,A11,'Tabela de Feriados'!$A$2:$A$937)-1 -> 189 | C11: ='Superfície de Vol USD Original'!B11/100 -> 0.2560606205 | D11: ='Superfície de Vol USD Original'!C11/100 -> 0.2480060386 | E11: ='Superfície de Vol USD Original'!D11/100 -> 0.2385489749 | F11: ='Superfície de Vol USD Original'!E11/100 -> 0.2140339579 | G11: ='Superfície de Vol USD Original'!F11/100 -> 0.2029095051 | H11: ='Superfície de Vol USD Original'!G11/100 -> 0.1955634882 | I11: ='Superfície de Vol USD Original'!H11/100 -> 0.1906743723 | J11: ='Superfície de Vol USD Original'!I11/100 -> 0.1874083203 | K11: ='Superfície de Vol USD Original'!J11/100 -> 0.1887689092 | L11: ='Superfície de Vol USD Original'!K11/100 -> 0.1912879093 | M11: ='Superfície de Vol USD Original'!L11/100 -> 0.1947671847
A12: 2023-03-01 | B12: =NETWORKDAYS($A$1,A12,'Tabela de Feriados'!$A$2:$A$937)-1 -> 229 | C12: ='Superfície de Vol USD Original'!B12/100 -> 0.2573962448 | D12: ='Superfície de Vol USD Original'!C12/100 -> 0.2487714731 | E12: ='Superfície de Vol USD Original'!D12/100 -> 0.2391297996 | F12: ='Superfície de Vol USD Original'!E12/100 -> 0.2168772555 | G12: ='Superfície de Vol USD Original'!F12/100 -> 0.2013787891 | H12: ='Superfície de Vol USD Original'!G12/100 -> 0.193558523 | I12: ='Superfície de Vol USD Original'!H12/100 -> 0.188848935 | J12: ='Superfície de Vol USD Original'!I12/100 -> 0.1853782975 | K12: ='Superfície de Vol USD Original'!J12/100 -> 0.1873942059 | L12: ='Superfície de Vol USD Original'!K12/100 -> 0.1902308796 | M12: ='Superfície de Vol USD Original'!L12/100 -> 0.1939485579
A13: 2023-04-03 | B13: =NETWORKDAYS($A$1,A13,'Tabela de Feriados'!$A$2:$A$937)-1 -> 252 | C13: ='Superfície de Vol USD Original'!B13/100 -> 0.2562187542 | D13: ='Superfície de Vol USD Original'!C13/100 -> 0.2472766175 | E13: ='Superfície de Vol USD Original'!D13/100 -> 0.236988934 | F13: ='Superfície de Vol USD Original'!E13/100 -> 0.2115683222 | G13: ='Superfície de Vol USD Original'!F13/100 -> 0.2000406034 | H13: ='Superfície de Vol USD Original'!G13/100 -> 0.1923710897 | I13: ='Superfície de Vol USD Original'!H13/100 -> 0.1873802728 | J13: ='Superfície de Vol USD Original'!I13/100 -> 0.1840516423 | K13: ='Superfície de Vol USD Original'!J13/100 -> 0.1860945904 | L13: ='Superfície de Vol USD Original'!K13/100 -> 0.1889664243 | M13: ='Superfície de Vol USD Original'!L13/100 -> 0.1927293716
A14: 2023-07-03 | B14: =NETWORKDAYS($A$1,A14,'Tabela de Feriados'!$A$2:$A$937)-1 -> 313 | C14: ='Superfície de Vol USD Original'!B14/100 -> 0.2579798689 | D14: ='Superfície de Vol USD Original'!C14/100 -> 0.2491713603 | E14: ='Superfície de Vol USD Original'!D14/100 -> 0.2387863 | F14: ='Superfície de Vol USD Original'!E14/100 -> 0.211603656 | G14: ='Superfície de Vol USD Original'!F14/100 -> 0.1995135146 | H14: ='Superfície de Vol USD Original'!G14/100 -> 0.1914068718 | I14: ='Superfície de Vol USD Original'!H14/100 -> 0.1866483196 | J14: ='Superfície de Vol USD Original'!I14/100 -> 0.183148075 | K14: ='Superfície de Vol USD Original'!J14/100 -> 0.1857673517 | L14: ='Superfície de Vol USD Original'!K14/100 -> 0.1888842445 | M14: ='Superfície de Vol USD Original'!L14/100 -> 0.1928150244
A15: 2023-10-02 | B15: =NETWORKDAYS($A$1,A15,'Tabela de Feriados'!$A$2:$A$937)-1 -> 377 | C15: ='Superfície de Vol USD Original'!B15/100 -> 0.258786372 | D15: ='Superfície de Vol USD Original'!C15/100 -> 0.2507866026 | E15: ='Superfície de Vol USD Original'!D15/100 -> 0.240943514 | F15: ='Superfície de Vol USD Original'!E15/100 -> 0.2124787385 | G15: ='Superfície de Vol USD Original'!F15/100 -> 0.2002773227 | H15: ='Superfície de Vol USD Original'!G15/100 -> 0.1921929461 | I15: ='Superfície de Vol USD Original'!H15/100 -> 0.1871772791 | J15: ='Superfície de Vol USD Original'!I15/100 -> 0.183554797 | K15: ='Superfície de Vol USD Original'!J15/100 -> 0.1856152459 | L15: ='Superfície de Vol USD Original'!K15/100 -> 0.1885755606 | M15: ='Superfície de Vol USD Original'!L15/100 -> 0.1924724727
A16: 2024-01-02 | B16: =NETWORKDAYS($A$1,A16,'Tabela de Feriados'!$A$2:$A$937)-1 -> 438 | C16: ='Superfície de Vol USD Original'!B16/100 -> 0.2616504557 | D16: ='Superfície de Vol USD Original'!C16/100 -> 0.2535454812 | E16: ='Superfície de Vol USD Original'!D16/100 -> 0.2435689919 | F16: ='Superfície de Vol USD Original'!E16/100 -> 0.2146918155 | G16: ='Superfície de Vol USD Original'!F16/100 -> 0.2022144438 | H16: ='Superfície de Vol USD Original'!G16/100 -> 0.1939312522 | I16: ='Superfície de Vol USD Original'!H16/100 -> 0.1887480853 | J16: ='Superfície de Vol USD Original'!I16/100 -> 0.1849555454 | K16: ='Superfície de Vol USD Original'!J16/100 -> 0.1867915124 | L16: ='Superfície de Vol USD Original'!K16/100 -> 0.1896725516 | M16: ='Superfície de Vol USD Original'!L16/100 -> 0.1935336598
A17: 2024-04-01 | B17: =NETWORKDAYS($A$1,A17,'Tabela de Feriados'!$A$2:$A$937)-1 -> 499 | C17: ='Superfície de Vol USD Original'!B17/100 -> 0.2594494141 | D17: ='Superfície de Vol USD Original'!C17/100 -> 0.2506470568 | E17: ='Superfície de Vol USD Original'!D17/100 -> 0.2402116213 | F17: ='Superfície de Vol USD Original'!E17/100 -> 0.212540443 | G17: ='Superfície de Vol USD Original'!F17/100 -> 0.200132178 | H17: ='Superfície de Vol USD Original'!G17/100 -> 0.1919636219 | I17: ='Superfície de Vol USD Original'!H17/100 -> 0.1869440809 | J17: ='Superfície de Vol USD Original'!I17/100 -> 0.1833525796 | K17: ='Superfície de Vol USD Original'!J17/100 -> 0.1856057595 | L17: ='Superfície de Vol USD Original'!K17/100 -> 0.1886396165 | M17: ='Superfície de Vol USD Original'!L17/100 -> 0.192577664
A18: 2024-07-01 | B18: =NETWORKDAYS($A$1,A18,'Tabela de Feriados'!$A$2:$A$937)-1 -> 562 | C18: ='Superfície de Vol USD Original'!B18/100 -> 0.2672710032 | D18: ='Superfície de Vol USD Original'!C18/100 -> 0.2583302136 | E18: ='Superfície de Vol USD Original'!D18/100 -> 0.2479167291 | F18: ='Superfície de Vol USD Original'!E18/100 -> 0.2214278583 | G18: ='Superfície de Vol USD Original'!F18/100 -> 0.205428189 | H18: ='Superfície de Vol USD Original'!G18/100 -> 0.1933026644 | I18: ='Superfície de Vol USD Original'!H18/100 -> 0.1865928881 | J18: ='Superfície de Vol USD Original'!I18/100 -> 0.1852061257 | K18: ='Superfície de Vol USD Original'!J18/100 -> 0.189961957 | L18: ='Superfície de Vol USD Original'!K18/100 -> 0.193044901 | M18: ='Superfície de Vol USD Original'!L18/100 -> 0.1962764074

Sheet Smiles
A1: Data | B1: 2023-04-03
A2: ="Smile de Vol FX para " & TEXT(B1,"mmm/aaaa") -> Smile de Vol FX para abr/2023
A3: D | B3: s
A4: =TRANSPOSE('Superfície de Vol Dias Úteis'!C1:M1) -> 0.01 | B4: =VLOOKUP($B$1,'Superfície de Vol Dias Úteis'!$A$2:$M$18,3,FALSE) -> 0.2562187542
A5: 0.05 | B5: =VLOOKUP($B$1,'Superfície de Vol Dias Úteis'!$A$2:$M$18,4,FALSE) -> 0.2472766175
A6: 0.1 | B6: =VLOOKUP($B$1,'Superfície de Vol Dias Úteis'!$A$2:$M$18,5,FALSE) -> 0.236988934
A7: 0.25 | B7: =VLOOKUP($B$1,'Superfície de Vol Dias Úteis'!$A$2:$M$18,6,FALSE) -> 0.2115683222
A8: 0.37 | B8: =VLOOKUP($B$1,'Superfície de Vol Dias Úteis'!$A$2:$M$18,7,FALSE) -> 0.2000406034
A9: 0.5 | B9: =VLOOKUP($B$1,'Superfície de Vol Dias Úteis'!$A$2:$M$18,8,FALSE) -> 0.1923710897
A10: 0.63 | B10: =VLOOKUP($B$1,'Superfície de Vol Dias Úteis'!$A$2:$M$18,9,FALSE) -> 0.1873802728
A11: 0.75 | B11: =VLOOKUP($B$1,'Superfície de Vol Dias Úteis'!$A$2:$M$18,10,FALSE) -> 0.1840516423
A12: 0.9 | B12: =VLOOKUP($B$1,'Superfície de Vol Dias Úteis'!$A$2:$M$18,11,FALSE) -> 0.1860945904
A13: 0.95 | B13: =VLOOKUP($B$1,'Superfície de Vol Dias Úteis'!$A$2:$M$18,12,FALSE) -> 0.1889664243
A14: 0.99 | B14: =VLOOKUP($B$1,'Superfície de Vol Dias Úteis'!$A$2:$M$18,13,FALSE) -> 0.1927293716

Sheet ETTVol
A1: D | B1: 0.5
A2: ="ETT de Vol FX para Delta=" &B1 -> ETT de Vol FX para Delta=0,5
A3: Vencimento | B3: s
A4: ='Superfície de Vol Dias Úteis'!A2 -> 2022-04-01 | B4: =VLOOKUP(A4,'Superfície de Vol Dias Úteis'!$A$2:$M$18,MATCH($B$1,'Superfície de Vol Dias Úteis'!$C$1:$M$1)+2,FALSE) -> 0.191960203
A5: ='Superfície de Vol Dias Úteis'!A3 -> 2022-05-02 | B5: =VLOOKUP(A5,'Superfície de Vol Dias Úteis'!$A$2:$M$18,MATCH($B$1,'Superfície de Vol Dias Úteis'!$C$1:$M$1)+2,FALSE) -> 0.1774185212
A6: ='Superfície de Vol Dias Úteis'!A4 -> 2022-06-01 | B6: =VLOOKUP(A6,'Superfície de Vol Dias Úteis'!$A$2:$M$18,MATCH($B$1,'Superfície de Vol Dias Úteis'!$C$1:$M$1)+2,FALSE) -> 0.1827053331
A7: ='Superfície de Vol Dias Úteis'!A5 -> 2022-07-01 | B7: =VLOOKUP(A7,'Superfície de Vol Dias Úteis'!$A$2:$M$18,MATCH($B$1,'Superfície de Vol Dias Úteis'!$C$1:$M$1)+2,FALSE) -> 0.1828885492
A8: ='Superfície de Vol Dias Úteis'!A6 -> 2022-08-01 | B8: =VLOOKUP(A8,'Superfície de Vol Dias Úteis'!$A$2:$M$18,MATCH($B$1,'Superfície de Vol Dias Úteis'!$C$1:$M$1)+2,FALSE) -> 0.1839431464
A9: ='Superfície de Vol Dias Úteis'!A7 -> 2022-09-01 | B9: =VLOOKUP(A9,'Superfície de Vol Dias Úteis'!$A$2:$M$18,MATCH($B$1,'Superfície de Vol Dias Úteis'!$C$1:$M$1)+2,FALSE) -> 0.1852178836
A10: ='Superfície de Vol Dias Úteis'!A8 -> 2022-10-03 | B10: =VLOOKUP(A10,'Superfície de Vol Dias Úteis'!$A$2:$M$18,MATCH($B$1,'Superfície de Vol Dias Úteis'!$C$1:$M$1)+2,FALSE) -> 0.1891485656
A11: ='Superfície de Vol Dias Úteis'!A9 -> 2022-11-01 | B11: =VLOOKUP(A11,'Superfície de Vol Dias Úteis'!$A$2:$M$18,MATCH($B$1,'Superfície de Vol Dias Úteis'!$C$1:$M$1)+2,FALSE) -> 0.1922965849
A12: ='Superfície de Vol Dias Úteis'!A10 -> 2022-12-01 | B12: =VLOOKUP(A12,'Superfície de Vol Dias Úteis'!$A$2:$M$18,MATCH($B$1,'Superfície de Vol Dias Úteis'!$C$1:$M$1)+2,FALSE) -> 0.1905192314
A13: ='Superfície de Vol Dias Úteis'!A11 -> 2023-01-02 | B13: =VLOOKUP(A13,'Superfície de Vol Dias Úteis'!$A$2:$M$18,MATCH($B$1,'Superfície de Vol Dias Úteis'!$C$1:$M$1)+2,FALSE) -> 0.1955634882
A14: ='Superfície de Vol Dias Úteis'!A12 -> 2023-03-01 | B14: =VLOOKUP(A14,'Superfície de Vol Dias Úteis'!$A$2:$M$18,MATCH($B$1,'Superfície de Vol Dias Úteis'!$C$1:$M$1)+2,FALSE) -> 0.193558523
A15: ='Superfície de Vol Dias Úteis'!A13 -> 2023-04-03 | B15: =VLOOKUP(A15,'Superfície de Vol Dias Úteis'!$A$2:$M$18,MATCH($B$1,'Superfície de Vol Dias Úteis'!$C$1:$M$1)+2,FALSE) -> 0.1923710897
A16: ='Superfície de Vol Dias Úteis'!A14 -> 2023-07-03 | B16: =VLOOKUP(A16,'Superfície de Vol Dias Úteis'!$A$2:$M$18,MATCH($B$1,'Superfície de Vol Dias Úteis'!$C$1:$M$1)+2,FALSE) -> 0.1914068718
A17: ='Superfície de Vol Dias Úteis'!A15 -> 2023-10-02 | B17: =VLOOKUP(A17,'Superfície de Vol Dias Úteis'!$A$2:$M$18,MATCH($B$1,'Superfície de Vol Dias Úteis'!$C$1:$M$1)+2,FALSE) -> 0.1921929461
A18: ='Superfície de Vol Dias Úteis'!A16 -> 2024-01-02 | B18: =VLOOKUP(A18,'Superfície de Vol Dias Úteis'!$A$2:$M$18,MATCH($B$1,'Superfície de Vol Dias Úteis'!$C$1:$M$1)+2,FALSE) -> 0.1939312522
A19: ='Superfície de Vol Dias Úteis'!A17 -> 2024-04-01 | B19: =VLOOKUP(A19,'Superfície de Vol Dias Úteis'!$A$2:$M$18,MATCH($B$1,'Superfície de Vol Dias Úteis'!$C$1:$M$1)+2,FALSE) -> 0.1919636219
A20: ='Superfície de Vol Dias Úteis'!A18 -> 2024-07-01 | B20: =VLOOKUP(A20,'Superfície de Vol Dias Úteis'!$A$2:$M$18,MATCH($B$1,'Superfície de Vol Dias Úteis'!$C$1:$M$1)+2,FALSE) -> 0.1933026644

Sheet Tabela de Feriados
A1: Data | B1: Dia da Semana | C1: Feriado
A2: 2001-01-01 | B2: segunda-feira | C2: Confraternização Universal
A3: 2001-02-26 | B3: segunda-feira | C3: Carnaval
A4: 2001-02-27 | B4: terça-feira | C4: Carnaval
A5: 2001-04-13 | B5: sexta-feira | C5: Paixão de Cristo
A6: 2001-04-21 | B6: sábado | C6: Tiradentes
A7: 2001-05-01 | B7: terça-feira | C7: Dia do Trabalho
A8: 2001-06-14 | B8: quinta-feira | C8: Corpus Christi
A9: 2001-09-07 | B9: sexta-feira | C9: Independência do Brasil
A10: 2001-10-12 | B10: sexta-feira | C10: Nossa Sr.a Aparecida - Padroeira do Brasil
A11: 2001-11-02 | B11: sexta-feira | C11: Finados
A12: 2001-11-15 | B12: quinta-feira | C12: Proclamação da República
A13: 2001-12-25 | B13: terça-feira | C13: Natal
A14: 2002-01-01 | B14: terça-feira | C14: Confraternização Universal
A15: 2002-02-11 | B15: segunda-feira | C15: Carnaval
A16: 2002-02-12 | B16: terça-feira | C16: Carnaval
A17: 2002-03-29 | B17: sexta-feira | C17: Paixão de Cristo
A18: 2002-04-21 | B18: domingo | C18: Tiradentes
A19: 2002-05-01 | B19: quarta-feira | C19: Dia do Trabalho
A20: 2002-05-30 | B20: quinta-feira | C20: Corpus Christi
A21: 2002-09-07 | B21: sábado | C21: Independência do Brasil
A22: 2002-10-12 | B22: sábado | C22: Nossa Sr.a Aparecida - Padroeira do Brasil
A23: 2002-11-02 | B23: sábado | C23: Finados
A24: 2002-11-15 | B24: sexta-feira | C24: Proclamação da República
A25: 2002-12-25 | B25: quarta-feira | C25: Natal
A26: 2003-01-01 | B26: quarta-feira | C26: Confraternização Universal
A27: 2003-03-03 | B27: segunda-feira | C27: Carnaval
A28: 2003-03-04 | B28: terça-feira | C28: Carnaval
A29: 2003-04-18 | B29: sexta-feira | C29: Paixão de Cristo
A30: 2003-04-21 | B30: segunda-feira | C30: Tiradentes
A31: 2003-05-01 | B31: quinta-feira | C31: Dia do Trabalho
A32: 2003-06-19 | B32: quinta-feira | C32: Corpus Christi
A33: 2003-09-07 | B33: domingo | C33: Independência do Brasil
A34: 2003-10-12 | B34: domingo | C34: Nossa Sr.a Aparecida - Padroeira do Brasil
A35: 2003-11-02 | B35: domingo | C35: Finados
A36: 2003-11-15 | B36: sábado | C36: Proclamação da República
A37: 2003-12-25 | B37: quinta-feira | C37: Natal
A38: 2004-01-01 | B38: quinta-feira | C38: Confraternização Universal
A39: 2004-02-23 | B39: segunda-feira | C39: Carnaval
A40: 2004-02-24 | B40: terça-feira | C40: Carnaval
A41: 2004-04-09 | B41: sexta-feira | C41: Paixão de Cristo
A42: 2004-04-21 | B42: quarta-feira | C42: Tiradentes
A43: 2004-05-01 | B43: sábado | C43: Dia do Trabalho
A44: 2004-06-10 | B44: quinta-feira | C44: Corpus Christi
A45: 2004-09-07 | B45: terça-feira | C45: Independência do Brasil
A46: 2004-10-12 | B46: terça-feira | C46: Nossa Sr.a Aparecida - Padroeira do Brasil
A47: 2004-11-02 | B47: terça-feira | C47: Finados
A48: 2004-11-15 | B48: segunda-feira | C48: Proclamação da República
A49: 2004-12-25 | B49: sábado | C49: Natal
A50: 2005-01-01 | B50: sábado | C50: Confraternização Universal
A51: 2005-02-07 | B51: segunda-feira | C51: Carnaval
A52: 2005-02-08 | B52: terça-feira | C52: Carnaval
A53: 2005-03-25 | B53: sexta-feira | C53: Paixão de Cristo
A54: 2005-04-21 | B54: quinta-feira | C54: Tiradentes
A55: 2005-05-01 | B55: domingo | C55: Dia do Trabalho
A56: 2005-05-26 | B56: quinta-feira | C56: Corpus Christi
A57: 2005-09-07 | B57: quarta-feira | C57: Independência do Brasil
A58: 2005-10-12 | B58: quarta-feira | C58: Nossa Sr.a Aparecida - Padroeira do Brasil
A59: 2005-11-02 | B59: quarta-feira | C59: Finados
A60: 2005-11-15 | B60: terça-feira | C60: Proclamação da República
A61: 2005-12-25 | B61: domingo | C61: Natal
A62: 2006-01-01 | B62: domingo | C62: Confraternização Universal
A63: 2006-02-27 | B63: segunda-feira | C63: Carnaval
A64: 2006-02-28 | B64: terça-feira | C64: Carnaval
A65: 2006-04-14 | B65: sexta-feira | C65: Paixão de Cristo
A66: 2006-04-21 | B66: sexta-feira | C66: Tiradentes
A67: 2006-05-01 | B67: segunda-feira | C67: Dia do Trabalho
A68: 2006-06-15 | B68: quinta-feira | C68: Corpus Christi
A69: 2006-09-07 | B69: quinta-feira | C69: Independência do Brasil
A70: 2006-10-12 | B70: quinta-feira | C70: Nossa Sr.a Aparecida - Padroeira do Brasil
A71: 2006-11-02 | B71: quinta-feira | C71: Finados
A72: 2006-11-15 | B72: quarta-feira | C72: Proclamação da República
A73: 2006-12-25 | B73: segunda-feira | C73: Natal
A74: 2007-01-01 | B74: segunda-feira | C74: Confraternização Universal
A75: 2007-02-19 | B75: segunda-feira | C75: Carnaval
A76: 2007-02-20 | B76: terça-feira | C76: Carnaval
A77: 2007-04-06 | B77: sexta-feira | C77: Paixão de Cristo
A78: 2007-04-21 | B78: sábado | C78: Tiradentes
A79: 2007-05-01 | B79: terça-feira | C79: Dia do Trabalho
A80: 2007-06-07 | B80: quinta-feira | C80: Corpus Christi
A81: 2007-09-07 | B81: sexta-feira | C81: Independência do Brasil
A82: 2007-10-12 | B82: sexta-feira | C82: Nossa Sr.a Aparecida - Padroeira do Brasil
A83: 2007-11-02 | B83: sexta-feira | C83: Finados
A84: 2007-11-15 | B84: quinta-feira | C84: Proclamação da República
A85: 2007-12-25 | B85: terça-feira | C85: Natal
A86: 2008-01-01 | B86: terça-feira | C86: Confraternização Universal
A87: 2008-02-04 | B87: segunda-feira | C87: Carnaval
A88: 2008-02-05 | B88: terça-feira | C88: Carnaval
A89: 2008-03-21 | B89: sexta-feira | C89: Paixão de Cristo
A90: 2008-04-21 | B90: segunda-feira | C90: Tiradentes
A91: 2008-05-01 | B91: quinta-feira | C91: Dia do Trabalho
A92: 2008-05-22 | B92: quinta-feira | C92: Corpus Christi
A93: 2008-09-07 | B93: domingo | C93: Independência do Brasil
A94: 2008-10-12 | B94: domingo | C94: Nossa Sr.a Aparecida - Padroeira do Brasil
A95: 2008-11-02 | B95: domingo | C95: Finados
A96: 2008-11-15 | B96: sábado | C96: Proclamação da República
A97: 2008-12-25 | B97: quinta-feira | C97: Natal
A98: 2009-01-01 | B98: quinta-feira | C98: Confraternização Universal
A99: 2009-02-23 | B99: segunda-feira | C99: Carnaval
A100: 2009-02-24 | B100: terça-feira | C100: Carnaval
A101: 2009-04-10 | B101: sexta-feira | C101: Paixão de Cristo
A102: 2009-04-21 | B102: terça-feira | C102: Tiradentes
A103: 2009-05-01 | B103: sexta-feira | C103: Dia do Trabalho
A104: 2009-06-11 | B104: quinta-feira | C104: Corpus Christi
A105: 2009-09-07 | B105: segunda-feira | C105: Independência do Brasil
A106: 2009-10-12 | B106: segunda-feira | C106: Nossa Sr.a Aparecida - Padroeira do Brasil
A107: 2009-11-02 | B107: segunda-feira | C107: Finados
A108: 2009-11-15 | B108: domingo | C108: Proclamação da República
A109: 2009-12-25 | B109: sexta-feira | C109: Natal
A110: 2010-01-01 | B110: sexta-feira | C110: Confraternização Universal
A111: 2010-02-15 | B111: segunda-feira | C111: Carnaval
A112: 2010-02-16 | B112: terça-feira | C112: Carnaval
A113: 2010-04-02 | B113: sexta-feira | C113: Paixão de Cristo
A114: 2010-04-21 | B114: quarta-feira | C114: Tiradentes
A115: 2010-05-01 | B115: sábado | C115: Dia do Trabalho
A116: 2010-06-03 | B116: quinta-feira | C116: Corpus Christi
A117: 2010-09-07 | B117: terça-feira | C117: Independência do Brasil
A118: 2010-10-12 | B118: terça-feira | C118: Nossa Sr.a Aparecida - Padroeira do Brasil
A119: 2010-11-02 | B119: terça-feira | C119: Finados
A120: 2010-11-15 | B120: segunda-feira | C120: Proclamação da República
A121: 2010-12-25 | B121: sábado | C121: Natal
A122: 2011-01-01 | B122: sábado | C122: Confraternização Universal
A123: 2011-03-07 | B123: segunda-feira | C123: Carnaval
A124: 2011-03-08 | B124: terça-feira | C124: Carnaval
A125: 2011-04-21 | B125: quinta-feira | C125: Paixão de Cristo
A126: 2011-04-22 | B126: sexta-feira | C126: Tiradentes
A127: 2011-05-01 | B127: domingo | C127: Dia do Trabalho
A128: 2011-06-23 | B128: quinta-feira | C128: Corpus Christi
A129: 2011-09-07 | B129: quarta-feira | C129: Independência do Brasil
A130: 2011-10-12 | B130: quarta-feira | C130: Nossa Sr.a Aparecida - Padroeira do Brasil
A131: 2011-11-02 | B131: quarta-feira | C131: Finados
A132: 2011-11-15 | B132: terça-feira | C132: Proclamação da República
A133: 2011-12-25 | B133: domingo | C133: Natal
A134: 2012-01-01 | B134: domingo | C134: Confraternização Universal
A135: 2012-02-20 | B135: segunda-feira | C135: Carnaval
A136: 2012-02-21 | B136: terça-feira | C136: Carnaval
A137: 2012-04-06 | B137: sexta-feira | C137: Paixão de Cristo
A138: 2012-04-21 | B138: sábado | C138: Tiradentes
A139: 2012-05-01 | B139: terça-feira | C139: Dia do Trabalho
A140: 2012-06-07 | B140: quinta-feira | C140: Corpus Christi
A141: 2012-09-07 | B141: sexta-feira | C141: Independência do Brasil
A142: 2012-10-12 | B142: sexta-feira | C142: Nossa Sr.a Aparecida - Padroeira do Brasil
A143: 2012-11-02 | B143: sexta-feira | C143: Finados
A144: 2012-11-15 | B144: quinta-feira | C144: Proclamação da República
A145: 2012-12-25 | B145: terça-feira | C145: Natal
A146: 2013-01-01 | B146: terça-feira | C146: Confraternização Universal
A147: 2013-02-11 | B147: segunda-feira | C147: Carnaval
A148: 2013-02-12 | B148: terça-feira | C148: Carnaval
A149: 2013-03-29 | B149: sexta-feira | C149: Paixão de Cristo
A150: 2013-04-21 | B150: domingo | C150: Tiradentes
A151: 2013-05-01 | B151: quarta-feira | C151: Dia do Trabalho
A152: 2013-05-30 | B152: quinta-feira | C152: Corpus Christi
A153: 2013-09-07 | B153: sábado | C153: Independência do Brasil
A154: 2013-10-12 | B154: sábado | C154: Nossa Sr.a Aparecida - Padroeira do Brasil
A155: 2013-11-02 | B155: sábado | C155: Finados
A156: 2013-11-15 | B156: sexta-feira | C156: Proclamação da República
A157: 2013-12-25 | B157: quarta-feira | C157: Natal
A158: 2014-01-01 | B158: quarta-feira | C158: Confraternização Universal
A159: 2014-03-03 | B159: segunda-feira | C159: Carnaval
A160: 2014-03-04 | B160: terça-feira | C160: Carnaval
A161: 2014-04-18 | B161: sexta-feira | C161: Paixão de Cristo
A162: 2014-04-21 | B162: segunda-feira | C162: Tiradentes
A163: 2014-05-01 | B163: quinta-feira | C163: Dia do Trabalho
A164: 2014-06-19 | B164: quinta-feira | C164: Corpus Christi
A165: 2014-09-07 | B165: domingo | C165: Independência do Brasil
A166: 2014-10-12 | B166: domingo | C166: Nossa Sr.a Aparecida - Padroeira do Brasil
A167: 2014-11-02 | B167: domingo | C167: Finados
A168: 2014-11-15 | B168: sábado | C168: Proclamação da República
A169: 2014-12-25 | B169: quinta-feira | C169: Natal
A170: 2015-01-01 | B170: quinta-feira | C170: Confraternização Universal
A171: 2015-02-16 | B171: segunda-feira | C171: Carnaval
A172: 2015-02-17 | B172: terça-feira | C172: Carnaval
A173: 2015-04-03 | B173: sexta-feira | C173: Paixão de Cristo
A174: 2015-04-21 | B174: terça-feira | C174: Tiradentes
A175: 2015-05-01 | B175: sexta-feira | C175: Dia do Trabalho
A176: 2015-06-04 | B176: quinta-feira | C176: Corpus Christi
A177: 2015-09-07 | B177: segunda-feira | C177: Independência do Brasil
A178: 2015-10-12 | B178: segunda-feira | C178: Nossa Sr.a Aparecida - Padroeira do Brasil
A179: 2015-11-02 | B179: segunda-feira | C179: Finados
A180: 2015-11-15 | B180: domingo | C180: Proclamação da República
A181: 2015-12-25 | B181: sexta-feira | C181: Natal
A182: 2016-01-01 | B182: sexta-feira | C182: Confraternização Universal
A183: 2016-02-08 | B183: segunda-feira | C183: Carnaval
A184: 2016-02-09 | B184: terça-feira | C184: Carnaval
A185: 2016-03-25 | B185: sexta-feira | C185: Paixão de Cristo
A186: 2016-04-21 | B186: quinta-feira | C186: Tiradentes
A187: 2016-05-01 | B187: domingo | C187: Dia do Trabalho
A188: 2016-05-26 | B188: quinta-feira | C188: Corpus Christi
A189: 2016-09-07 | B189: quarta-feira | C189: Independência do Brasil
A190: 2016-10-12 | B190: quarta-feira | C190: Nossa Sr.a Aparecida - Padroeira do Brasil
A191: 2016-11-02 | B191: quarta-feira | C191: Finados
A192: 2016-11-15 | B192: terça-feira | C192: Proclamação da República
A193: 2016-12-25 | B193: domingo | C193: Natal
A194: 2017-01-01 | B194: domingo | C194: Confraternização Universal
A195: 2017-02-27 | B195: segunda-feira | C195: Carnaval
A196: 2017-02-28 | B196: terça-feira | C196: Carnaval
A197: 2017-04-14 | B197: sexta-feira | C197: Paixão de Cristo
A198: 2017-04-21 | B198: sexta-feira | C198: Tiradentes
A199: 2017-05-01 | B199: segunda-feira | C199: Dia do Trabalho
A200: 2017-06-15 | B200: quinta-feira | C200: Corpus Christi
... 742 more rows

Sheet Gatheral
A1: Data | B1: 2024-07-01
A2: ="Smile de Vol FX para " & TEXT(B1,"mmm/aaaa") -> Smile de Vol FX para jul/2024
A3: a | B3: 0.03403148602
A4: b | B4: 0.02458638923
A5: r | B5: -0.6545998776
A6: s | B6: 0.000438474224
A7: m | B7: 0.1714259827
A8: b(1+|r|)T | B8: =B4*(1+ABS(B5))*B11/252 -> 0.09072427689
A9: S | B9: 4.66
A10: DC | B10: =VLOOKUP(B1,'Superfície de Vol Dias Úteis'!$A$2:$M$18,1,FALSE)-'Superfície de Vol Dias Úteis'!$A$1 -> 822
A11: DU | B11: =VLOOKUP(B1,'Superfície de Vol Dias Úteis'!$A$2:$M$18,2,FALSE) -> 562
A12: Taxa Pré | B12: =InterpolaPre(B11) -> 0.1143
A13: Cupom Cambial | B13: =InterpolaCupom(B10) -> 0.0312
A14: r1 | B14: =LN(1+B12) -> 0.1082264051 | C14: Taxa Contínua
A15: r2 | B15: =252/B11*LN(1+B13*B10/360) -> 0.03085738027 | C15: Taxa Contínua
A16: F | B16: =B9*EXP((B14-B15)*B11/252) -> 5.537597012
A18: D | B18: Vol Observada | C18: Var(x) | D18: x | E18: Vol Gatheral | F18: sx-sBS | G18: e2 | H18: Moneyness | I18: K equivalente
A19: =TRANSPOSE('Superfície de Vol Dias Úteis'!C1:M1) -> 0.01 | B19: =VLOOKUP($B$1,'Superfície de Vol Dias Úteis'!$A$2:$M$18,3,FALSE) -> 0.2672710032 | C19: =Gatheral($B$3,$B$4,$B$6,$B$5,$B$7,A19,$B$11/252,B19,"Varx") -> 0.07665769755 | D19: =Gatheral($B$3,$B$4,$B$6,$B$5,$B$7,A19,$B$11/252,B19,"x") -> -0.8763995389 | E19: =SQRT(C19) -> 0.2768712653 | F19: =SQRT(C19)-B19 -> 0.009600262076 | G19: =F19^2 -> 9.216503192e-05 | H19: =D19 -> -0.8763995389 | I19: =$B$16*EXP(D19) -> 2.305185419
A20: 0.05 | B20: =VLOOKUP($B$1,'Superfície de Vol Dias Úteis'!$A$2:$M$18,4,FALSE) -> 0.2583302136 | C20: =Gatheral($B$3,$B$4,$B$6,$B$5,$B$7,A20,$B$11/252,B20,"Varx") -> 0.06327037024 | D20: =Gatheral($B$3,$B$4,$B$6,$B$5,$B$7,A20,$B$11/252,B20,"x") -> -0.5473159882 | E20: =SQRT(C20) -> 0.2515360218 | F20: =SQRT(C20)-B20 -> -0.006794191877 | G20: =F20^2 -> 4.616104326e-05 | H20: =D20 -> -0.5473159882 | I20: =$B$16*EXP(D20) -> 3.203502255
A21: 0.1 | B21: =VLOOKUP($B$1,'Superfície de Vol Dias Úteis'!$A$2:$M$18,5,FALSE) -> 0.2479167291 | C21: =Gatheral($B$3,$B$4,$B$6,$B$5,$B$7,A21,$B$11/252,B21,"Varx") -> 0.05700840475 | D21: =Gatheral($B$3,$B$4,$B$6,$B$5,$B$7,A21,$B$11/252,B21,"x") -> -0.3933860868 | E21: 0.2387643289 | F21: -0.009152400202 | G21: 8.376642946e-05 | H21: -0.3933860868 | I21: 3.736594247
A22: 0.25 | B22: =VLOOKUP($B$1,'Superfície de Vol Dias Úteis'!$A$2:$M$18,6,FALSE) -> 0.2214278583 | C22: =Gatheral($B$3,$B$4,$B$6,$B$5,$B$7,A22,$B$11/252,B22,"Varx") -> 0.04779537602 | D22: =Gatheral($B$3,$B$4,$B$6,$B$5,$B$7,A22,$B$11/252,B22,"x") -> -0.1669139295 | E22: 0.218621536 | F22: -0.002806322212 | G22: 7.875444355e-06 | H22: -0.1669139295 | I22: 4.686315775
A23: 0.37 | B23: =VLOOKUP($B$1,'Superfície de Vol Dias Úteis'!$A$2:$M$18,7,FALSE) -> 0.205428189 | C23: =Gatheral($B$3,$B$4,$B$6,$B$5,$B$7,A23,$B$11/252,B23,"Varx") -> 0.043235969 | D23: =Gatheral($B$3,$B$4,$B$6,$B$5,$B$7,A23,$B$11/252,B23,"x") -> -0.05483577979 | E23: 0.2079326069 | F23: 0.002504417861 | G23: 6.27210882e-06 | H23: -0.05483577979 | I23: 5.242114117
A24: 0.5 | B24: =VLOOKUP($B$1,'Superfície de Vol Dias Úteis'!$A$2:$M$18,8,FALSE) -> 0.1933026644 | C24: =Gatheral($B$3,$B$4,$B$6,$B$5,$B$7,A24,$B$11/252,B24,"Varx") -> 0.03922585401 | D24: =Gatheral($B$3,$B$4,$B$6,$B$5,$B$7,A24,$B$11/252,B24,"x") -> 0.04373994039 | E24: 0.1980551792 | F24: 0.004752514859 | G24: 2.258639749e-05 | H24: 0.04373994039 | I24: 5.785186477
A25: 0.63 | B25: =VLOOKUP($B$1,'Superfície de Vol Dias Úteis'!$A$2:$M$18,9,FALSE) -> 0.1865928881 | C25: =Gatheral($B$3,$B$4,$B$6,$B$5,$B$7,A25,$B$11/252,B25,"Varx") -> 0.03558770796 | D25: =Gatheral($B$3,$B$4,$B$6,$B$5,$B$7,A25,$B$11/252,B25,"x") -> 0.1331728902 | E25: 0.188647046 | F25: 0.002054157905 | G25: 4.219564699e-06 | H25: 0.1331728902 | I25: 6.326413858
A26: 0.75 | B26: =VLOOKUP($B$1,'Superfície de Vol Dias Úteis'!$A$2:$M$18,10,FALSE) -> 0.1852061257 | C26: =Gatheral($B$3,$B$4,$B$6,$B$5,$B$7,A26,$B$11/252,B26,"Varx") -> 0.0344909598 | D26: =Gatheral($B$3,$B$4,$B$6,$B$5,$B$7,A26,$B$11/252,B26,"x") -> 0.2255265977 | E26: 0.1857174192 | F26: 0.0005112935322 | G26: 2.614210761e-07 | H26: 0.2255265977 | I26: 6.938511373
A27: 0.9 | B27: =VLOOKUP($B$1,'Superfície de Vol Dias Úteis'!$A$2:$M$18,11,FALSE) -> 0.189961957 | C27: =Gatheral($B$3,$B$4,$B$6,$B$5,$B$7,A27,$B$11/252,B27,"Varx") -> 0.03600034158 | D27: =Gatheral($B$3,$B$4,$B$6,$B$5,$B$7,A27,$B$11/252,B27,"x") -> 0.4032691861 | E27: 0.1897375597 | F27: -0.0002243972238 | G27: 5.035411406e-08 | H27: 0.4032691861 | I27: 8.288175333
A28: 0.95 | B28: =VLOOKUP($B$1,'Superfície de Vol Dias Úteis'!$A$2:$M$18,12,FALSE) -> 0.193044901 | C28: =Gatheral($B$3,$B$4,$B$6,$B$5,$B$7,A28,$B$11/252,B28,"Varx") -> 0.0369343904 | D28: =Gatheral($B$3,$B$4,$B$6,$B$5,$B$7,A28,$B$11/252,B28,"x") -> 0.5132593527 | E28: 0.1921832209 | F28: -0.0008616801163 | G28: 7.424926228e-07 | H28: 0.5132593527 | I28: 9.251817391
A29: 0.99 | B29: =VLOOKUP($B$1,'Superfície de Vol Dias Úteis'!$A$2:$M$18,13,FALSE) -> 0.1962764074 | C29: =Gatheral($B$3,$B$4,$B$6,$B$5,$B$7,A29,$B$11/252,B29,"Varx") -> 0.0387502644 | D29: =Gatheral($B$3,$B$4,$B$6,$B$5,$B$7,A29,$B$11/252,B29,"x") -> 0.7270895849 | E29: 0.1968508684 | F29: 0.0005744610506 | G29: 3.300054986e-07 | H29: 0.7270895849 | I29: 11.45756533
G30: =SUM(G19:G29) -> 0.0002644302933
A32: Estimativa
A33: K | B33: =I28 -> 9.251817391
A34: x | B34: =-LN(B16/B33) -> 0.5132593527
A35: Varx | B35: =B3+B4*(B5*(B34-B7)+SQRT((B34-B7)^2+B6^2)) -> 0.0369343904
A36: Vol BS | B36: =SQRT(B35) -> 0.1921832209
A37: D | B37: =_xlfn.NORM.S.DIST(((B34-0.5*B35*B11/252))/SQRT(B35*B11/252),TRUE) -> 0.95

Sheet Cupom B3
A1: Hoje | B1: 2022-04-01
A3: Dias Corridos | B3: Cupom Cambial
A4: 3 | B4: -0.7984
A5: 7 | B5: -0.257
A6: 12 | B6: -0.1126
A7: 13 | B7: -0.0925
A8: 17 | B8: -0.0619
A9: 21 | B9: -0.0288
A10: 27 | B10: -0.0002
A11: 28 | B11: 0.0052
A12: 31 | B12: 0.0095
A13: 33 | B13: 0.0097
A14: 45 | B14: 0.0095
A15: 49 | B15: 0.0099
A16: 52 | B16: 0.0096
A17: 59 | B17: 0.0096
A18: 60 | B18: 0.0096
A19: 61 | B19: 0.0097
A20: 70 | B20: 0.0099
A21: 75 | B21: 0.0098
A22: 77 | B22: 0.0097
A23: 89 | B23: 0.0097
A24: 90 | B24: 0.0098
A25: 91 | B25: 0.0098
A26: 103 | B26: 0.0113
A27: 105 | B27: 0.0117
A28: 111 | B28: 0.0123
A29: 118 | B29: 0.013
A30: 119 | B30: 0.0131
A31: 122 | B31: 0.0131
A32: 136 | B32: 0.0139
A33: 138 | B33: 0.0142
A34: 150 | B34: 0.0146
A35: 151 | B35: 0.0147
A36: 152 | B36: 0.0148
A37: 153 | B37: 0.0149
A38: 161 | B38: 0.0152
A39: 167 | B39: 0.0154
A40: 168 | B40: 0.0155
A41: 174 | B41: 0.0158
A42: 180 | B42: 0.016
A43: 182 | B43: 0.0162
A44: 185 | B44: 0.0161
A45: 195 | B45: 0.0166
A46: 199 | B46: 0.0167
A47: 210 | B47: 0.0175
A48: 213 | B48: 0.0174
A49: 214 | B49: 0.0175
A50: 229 | B50: 0.018
A51: 241 | B51: 0.0184
A52: 243 | B52: 0.0186
A53: 244 | B53: 0.0187
A54: 257 | B54: 0.0193
A55: 259 | B55: 0.0195
A56: 264 | B56: 0.0197
A57: 270 | B57: 0.0199
A58: 271 | B58: 0.02
A59: 272 | B59: 0.0201
A60: 276 | B60: 0.0201
A61: 290 | B61: 0.0208
A62: 300 | B62: 0.0214
A63: 306 | B63: 0.0216
A64: 320 | B64: 0.0224
A65: 321 | B65: 0.0225
A66: 332 | B66: 0.0226
A67: 333 | B67: 0.0227
A68: 334 | B68: 0.0228
A69: 335 | B69: 0.0229
A70: 348 | B70: 0.0233
A71: 356 | B71: 0.0236
A72: 360 | B72: 0.0237
A73: 364 | B73: 0.024
A74: 367 | B74: 0.0239
A75: 376 | B75: 0.0241
A76: 381 | B76: 0.0242
A77: 390 | B77: 0.0245
A78: 391 | B78: 0.0245
A79: 409 | B79: 0.0248
A80: 420 | B80: 0.0253
A81: 439 | B81: 0.0256
A82: 440 | B82: 0.0257
A83: 451 | B83: 0.0258
A84: 454 | B84: 0.026
A85: 458 | B85: 0.026
A86: 472 | B86: 0.0264
A87: 480 | B87: 0.0266
A88: 501 | B88: 0.0272
A89: 502 | B89: 0.0272
A90: 510 | B90: 0.0274
A91: 518 | B91: 0.0277
A92: 532 | B92: 0.0279
A93: 538 | B93: 0.028
A94: 542 | B94: 0.028
A95: 549 | B95: 0.0281
A96: 563 | B96: 0.0284
A97: 565 | B97: 0.0285
A98: 570 | B98: 0.0285
A99: 594 | B99: 0.029
A100: 600 | B100: 0.0291
A101: 621 | B101: 0.0296
A102: 627 | B102: 0.0297
A103: 630 | B103: 0.0298
A104: 641 | B104: 0.0298
A105: 654 | B105: 0.0299
A106: 661 | B106: 0.03
A107: 684 | B107: 0.0301
A108: 685 | B108: 0.0302
A109: 690 | B109: 0.0302
A110: 720 | B110: 0.0305
A111: 731 | B111: 0.0305
A112: 745 | B112: 0.0306
A113: 752 | B113: 0.0307
A114: 775 | B114: 0.0309
A115: 780 | B115: 0.0309
A116: 810 | B116: 0.0311
A117: 822 | B117: 0.0312
A118: 840 | B118: 0.0314
A119: 867 | B119: 0.0315
A120: 871 | B120: 0.0315
A121: 900 | B121: 0.0316
A122: 914 | B122: 0.0317
A123: 923 | B123: 0.0318
A124: 930 | B124: 0.0319
A125: 962 | B125: 0.032
A126: 990 | B126: 0.0322
A127: 1007 | B127: 0.0323
A128: 1020 | B128: 0.0323
A129: 1050 | B129: 0.0324
A130: 1053 | B130: 0.0324
A131: 1081 | B131: 0.0324
A132: 1096 | B132: 0.0324
A133: 1110 | B133: 0.0324
A134: 1127 | B134: 0.0324
A135: 1140 | B135: 0.0324
A136: 1172 | B136: 0.0324
A137: 1187 | B137: 0.0324
A138: 1200 | B138: 0.0324
A139: 1232 | B139: 0.0325
A140: 1279 | B140: 0.0325
A141: 1326 | B141: 0.0327
A142: 1372 | B142: 0.0328
A143: 1419 | B143: 0.0328
A144: 1440 | B144: 0.0329
A145: 1461 | B145: 0.0329
A146: 1505 | B146: 0.0329
A147: 1552 | B147: 0.0329
A148: 1599 | B148: 0.0328
A149: 1644 | B149: 0.0327
A150: 1690 | B150: 0.0326
A151: 1739 | B151: 0.0326
A152: 1781 | B152: 0.0326
A153: 1802 | B153: 0.0326
A154: 1826 | B154: 0.0326
A155: 1872 | B155: 0.0326
A156: 1917 | B156: 0.0327
A157: 1963 | B157: 0.0328
A158: 2055 | B158: 0.0328
A159: 2103 | B159: 0.0329
A160: 2146 | B160: 0.033
A161: 2161 | B161: 0.0329
A162: 2236 | B162: 0.0329
A163: 2285 | B163: 0.033
A164: 2328 | B164: 0.033
A165: 2421 | B165: 0.0331
A166: 2468 | B166: 0.0331
A167: 2512 | B167: 0.0332
A168: 2520 | B168: 0.0332
A169: 2601 | B169: 0.0334
A170: 2649 | B170: 0.0336
A171: 2679 | B171: 0.0337
A172: 2693 | B172: 0.0337
A173: 2786 | B173: 0.0339
A174: 2833 | B174: 0.034
A175: 2877 | B175: 0.034
A176: 2880 | B176: 0.034
A177: 2922 | B177: 0.034
A178: 2966 | B178: 0.034
A179: 3013 | B179: 0.034
A180: 3058 | B180: 0.034
A181: 3153 | B181: 0.034
A182: 3198 | B182: 0.034
A183: 3240 | B183: 0.0341
A184: 3244 | B184: 0.0341
A185: 3331 | B185: 0.0341
A186: 3423 | B186: 0.0343
A187: 3517 | B187: 0.0344
A188: 3563 | B188: 0.0345
A189: 3603 | B189: 0.0346
A190: 3608 | B190: 0.0346
A191: 3699 | B191: 0.0348
A192: 3790 | B192: 0.0351
A193: 3882 | B193: 0.0353
A194: 3930 | B194: 0.0354
A195: 3960 | B195: 0.0355
A196: 3973 | B196: 0.0356
A197: 4063 | B197: 0.0358
A198: 4154 | B198: 0.0362
A199: 4247 | B199: 0.0364
A200: 4294 | B200: 0.0366
A201: 4322 | B201: 0.0367
... 69 more rows

Sheet Pré B3
A1: Hoje | B1: 2022-04-01
A3: Dias Corridos | B3: Dias Úteis | C3: Taxa Pré
A4: 3 | B4: =NETWORKDAYS($B$1,$B$1+A4,'Tabela de Feriados'!$A$2:$A$937)-1 -> 1 | C4: 0.1165
A5: 7 | B5: =NETWORKDAYS($B$1,$B$1+A5,'Tabela de Feriados'!$A$2:$A$937)-1 -> 5 | C5: 0.1165
A6: 12 | B6: =NETWORKDAYS($B$1,$B$1+A6,'Tabela de Feriados'!$A$2:$A$937)-1 -> 8 | C6: 0.1165
A7: 13 | B7: =NETWORKDAYS($B$1,$B$1+A7,'Tabela de Feriados'!$A$2:$A$937)-1 -> 9 | C7: 0.1165
A8: 17 | B8: =NETWORKDAYS($B$1,$B$1+A8,'Tabela de Feriados'!$A$2:$A$937)-1 -> 10 | C8: 0.1165
A9: 21 | B9: =NETWORKDAYS($B$1,$B$1+A9,'Tabela de Feriados'!$A$2:$A$937)-1 -> 13 | C9: 0.1165
A10: 27 | B10: =NETWORKDAYS($B$1,$B$1+A10,'Tabela de Feriados'!$A$2:$A$937)-1 -> 17 | C10: 0.1165
A11: 28 | B11: =NETWORKDAYS($B$1,$B$1+A11,'Tabela de Feriados'!$A$2:$A$937)-1 -> 18 | C11: 0.1165
A12: 31 | B12: =NETWORKDAYS($B$1,$B$1+A12,'Tabela de Feriados'!$A$2:$A$937)-1 -> 19 | C12: 0.1165
A13: 33 | B13: =NETWORKDAYS($B$1,$B$1+A13,'Tabela de Feriados'!$A$2:$A$937)-1 -> 21 | C13: 0.1173
A14: 45 | B14: =NETWORKDAYS($B$1,$B$1+A14,'Tabela de Feriados'!$A$2:$A$937)-1 -> 29 | C14: 0.1193
A15: 49 | B15: =NETWORKDAYS($B$1,$B$1+A15,'Tabela de Feriados'!$A$2:$A$937)-1 -> 33 | C15: 0.12
A16: 52 | B16: =NETWORKDAYS($B$1,$B$1+A16,'Tabela de Feriados'!$A$2:$A$937)-1 -> 34 | C16: 0.1201
A17: 59 | B17: =NETWORKDAYS($B$1,$B$1+A17,'Tabela de Feriados'!$A$2:$A$937)-1 -> 39 | C17: 0.1207
A18: 60 | B18: =NETWORKDAYS($B$1,$B$1+A18,'Tabela de Feriados'!$A$2:$A$937)-1 -> 40 | C18: 0.1208
A19: 61 | B19: =NETWORKDAYS($B$1,$B$1+A19,'Tabela de Feriados'!$A$2:$A$937)-1 -> 41 | C19: 0.1209
A20: 70 | B20: =NETWORKDAYS($B$1,$B$1+A20,'Tabela de Feriados'!$A$2:$A$937)-1 -> 48 | C20: 0.1218
A21: 75 | B21: =NETWORKDAYS($B$1,$B$1+A21,'Tabela de Feriados'!$A$2:$A$937)-1 -> 51 | C21: 0.1221
A22: 77 | B22: =NETWORKDAYS($B$1,$B$1+A22,'Tabela de Feriados'!$A$2:$A$937)-1 -> 52 | C22: 0.1222
A23: 89 | B23: =NETWORKDAYS($B$1,$B$1+A23,'Tabela de Feriados'!$A$2:$A$937)-1 -> 60 | C23: 0.1229
A24: 90 | B24: =NETWORKDAYS($B$1,$B$1+A24,'Tabela de Feriados'!$A$2:$A$937)-1 -> 61 | C24: 0.123
A25: 91 | B25: =NETWORKDAYS($B$1,$B$1+A25,'Tabela de Feriados'!$A$2:$A$937)-1 -> 62 | C25: 0.123
A26: 103 | B26: =NETWORKDAYS($B$1,$B$1+A26,'Tabela de Feriados'!$A$2:$A$937)-1 -> 70 | C26: 0.1237
A27: 105 | B27: =NETWORKDAYS($B$1,$B$1+A27,'Tabela de Feriados'!$A$2:$A$937)-1 -> 72 | C27: 0.1238
A28: 111 | B28: =NETWORKDAYS($B$1,$B$1+A28,'Tabela de Feriados'!$A$2:$A$937)-1 -> 76 | C28: 0.1241
A29: 118 | B29: =NETWORKDAYS($B$1,$B$1+A29,'Tabela de Feriados'!$A$2:$A$937)-1 -> 81 | C29: 0.1244
A30: 119 | B30: =NETWORKDAYS($B$1,$B$1+A30,'Tabela de Feriados'!$A$2:$A$937)-1 -> 82 | C30: 0.1244
A31: 122 | B31: =NETWORKDAYS($B$1,$B$1+A31,'Tabela de Feriados'!$A$2:$A$937)-1 -> 83 | C31: 0.1245
A32: 136 | B32: =NETWORKDAYS($B$1,$B$1+A32,'Tabela de Feriados'!$A$2:$A$937)-1 -> 93 | C32: 0.1248
A33: 138 | B33: =NETWORKDAYS($B$1,$B$1+A33,'Tabela de Feriados'!$A$2:$A$937)-1 -> 95 | C33: 0.1249
A34: 150 | B34: =NETWORKDAYS($B$1,$B$1+A34,'Tabela de Feriados'!$A$2:$A$937)-1 -> 103 | C34: 0.1251
A35: 151 | B35: =NETWORKDAYS($B$1,$B$1+A35,'Tabela de Feriados'!$A$2:$A$937)-1 -> 104 | C35: 0.1252
A36: 152 | B36: =NETWORKDAYS($B$1,$B$1+A36,'Tabela de Feriados'!$A$2:$A$937)-1 -> 105 | C36: 0.1252
A37: 153 | B37: =NETWORKDAYS($B$1,$B$1+A37,'Tabela de Feriados'!$A$2:$A$937)-1 -> 106 | C37: 0.1252
A38: 161 | B38: =NETWORKDAYS($B$1,$B$1+A38,'Tabela de Feriados'!$A$2:$A$937)-1 -> 111 | C38: 0.1253
A39: 167 | B39: =NETWORKDAYS($B$1,$B$1+A39,'Tabela de Feriados'!$A$2:$A$937)-1 -> 115 | C39: 0.1254
A40: 168 | B40: =NETWORKDAYS($B$1,$B$1+A40,'Tabela de Feriados'!$A$2:$A$937)-1 -> 116 | C40: 0.1254
A41: 174 | B41: =NETWORKDAYS($B$1,$B$1+A41,'Tabela de Feriados'!$A$2:$A$937)-1 -> 120 | C41: 0.1255
A42: 180 | B42: =NETWORKDAYS($B$1,$B$1+A42,'Tabela de Feriados'!$A$2:$A$937)-1 -> 124 | C42: 0.1256
A43: 182 | B43: =NETWORKDAYS($B$1,$B$1+A43,'Tabela de Feriados'!$A$2:$A$937)-1 -> 126 | C43: 0.1256
A44: 185 | B44: =NETWORKDAYS($B$1,$B$1+A44,'Tabela de Feriados'!$A$2:$A$937)-1 -> 127 | C44: 0.1257
A45: 195 | B45: =NETWORKDAYS($B$1,$B$1+A45,'Tabela de Feriados'!$A$2:$A$937)-1 -> 134 | C45: 0.1258
A46: 199 | B46: =NETWORKDAYS($B$1,$B$1+A46,'Tabela de Feriados'!$A$2:$A$937)-1 -> 136 | C46: 0.1258
A47: 210 | B47: =NETWORKDAYS($B$1,$B$1+A47,'Tabela de Feriados'!$A$2:$A$937)-1 -> 145 | C47: 0.1259
A48: 213 | B48: =NETWORKDAYS($B$1,$B$1+A48,'Tabela de Feriados'!$A$2:$A$937)-1 -> 146 | C48: 0.1259
A49: 214 | B49: =NETWORKDAYS($B$1,$B$1+A49,'Tabela de Feriados'!$A$2:$A$937)-1 -> 147 | C49: 0.126
A50: 229 | B50: =NETWORKDAYS($B$1,$B$1+A50,'Tabela de Feriados'!$A$2:$A$937)-1 -> 156 | C50: 0.1261
A51: 241 | B51: =NETWORKDAYS($B$1,$B$1+A51,'Tabela de Feriados'!$A$2:$A$937)-1 -> 164 | C51: 0.1262
A52: 243 | B52: =NETWORKDAYS($B$1,$B$1+A52,'Tabela de Feriados'!$A$2:$A$937)-1 -> 166 | C52: 0.1263
A53: 244 | B53: =NETWORKDAYS($B$1,$B$1+A53,'Tabela de Feriados'!$A$2:$A$937)-1 -> 167 | C53: 0.1263
A54: 257 | B54: =NETWORKDAYS($B$1,$B$1+A54,'Tabela de Feriados'!$A$2:$A$937)-1 -> 176 | C54: 0.1262
A55: 259 | B55: =NETWORKDAYS($B$1,$B$1+A55,'Tabela de Feriados'!$A$2:$A$937)-1 -> 178 | C55: 0.1262
A56: 264 | B56: =NETWORKDAYS($B$1,$B$1+A56,'Tabela de Feriados'!$A$2:$A$937)-1 -> 181 | C56: 0.1262
A57: 270 | B57: =NETWORKDAYS($B$1,$B$1+A57,'Tabela de Feriados'!$A$2:$A$937)-1 -> 185 | C57: 0.1262
A58: 271 | B58: =NETWORKDAYS($B$1,$B$1+A58,'Tabela de Feriados'!$A$2:$A$937)-1 -> 186 | C58: 0.1262
A59: 272 | B59: =NETWORKDAYS($B$1,$B$1+A59,'Tabela de Feriados'!$A$2:$A$937)-1 -> 187 | C59: 0.1262
A60: 276 | B60: =NETWORKDAYS($B$1,$B$1+A60,'Tabela de Feriados'!$A$2:$A$937)-1 -> 189 | C60: 0.1262
A61: 290 | B61: =NETWORKDAYS($B$1,$B$1+A61,'Tabela de Feriados'!$A$2:$A$937)-1 -> 199 | C61: 0.1263
A62: 300 | B62: =NETWORKDAYS($B$1,$B$1+A62,'Tabela de Feriados'!$A$2:$A$937)-1 -> 207 | C62: 0.1264
A63: 306 | B63: =NETWORKDAYS($B$1,$B$1+A63,'Tabela de Feriados'!$A$2:$A$937)-1 -> 211 | C63: 0.1264
A64: 320 | B64: =NETWORKDAYS($B$1,$B$1+A64,'Tabela de Feriados'!$A$2:$A$937)-1 -> 221 | C64: 0.1264
A65: 321 | B65: =NETWORKDAYS($B$1,$B$1+A65,'Tabela de Feriados'!$A$2:$A$937)-1 -> 222 | C65: 0.1264
A66: 332 | B66: =NETWORKDAYS($B$1,$B$1+A66,'Tabela de Feriados'!$A$2:$A$937)-1 -> 227 | C66: 0.1264
A67: 333 | B67: =NETWORKDAYS($B$1,$B$1+A67,'Tabela de Feriados'!$A$2:$A$937)-1 -> 228 | C67: 0.1264
A68: 334 | B68: =NETWORKDAYS($B$1,$B$1+A68,'Tabela de Feriados'!$A$2:$A$937)-1 -> 229 | C68: 0.1264
A69: 335 | B69: =NETWORKDAYS($B$1,$B$1+A69,'Tabela de Feriados'!$A$2:$A$937)-1 -> 230 | C69: 0.1263
A70: 348 | B70: =NETWORKDAYS($B$1,$B$1+A70,'Tabela de Feriados'!$A$2:$A$937)-1 -> 239 | C70: 0.1261
A71: 356 | B71: =NETWORKDAYS($B$1,$B$1+A71,'Tabela de Feriados'!$A$2:$A$937)-1 -> 245 | C71: 0.126
A72: 360 | B72: =NETWORKDAYS($B$1,$B$1+A72,'Tabela de Feriados'!$A$2:$A$937)-1 -> 247 | C72: 0.126
A73: 364 | B73: =NETWORKDAYS($B$1,$B$1+A73,'Tabela de Feriados'!$A$2:$A$937)-1 -> 251 | C73: 0.1259
A74: 367 | B74: =NETWORKDAYS($B$1,$B$1+A74,'Tabela de Feriados'!$A$2:$A$937)-1 -> 252 | C74: 0.1259
A75: 376 | B75: =NETWORKDAYS($B$1,$B$1+A75,'Tabela de Feriados'!$A$2:$A$937)-1 -> 258 | C75: 0.1257
A76: 381 | B76: =NETWORKDAYS($B$1,$B$1+A76,'Tabela de Feriados'!$A$2:$A$937)-1 -> 261 | C76: 0.1256
A77: 390 | B77: =NETWORKDAYS($B$1,$B$1+A77,'Tabela de Feriados'!$A$2:$A$937)-1 -> 267 | C77: 0.1254
A78: 391 | B78: =NETWORKDAYS($B$1,$B$1+A78,'Tabela de Feriados'!$A$2:$A$937)-1 -> 268 | C78: 0.1254
A79: 409 | B79: =NETWORKDAYS($B$1,$B$1+A79,'Tabela de Feriados'!$A$2:$A$937)-1 -> 279 | C79: 0.1251
A80: 420 | B80: =NETWORKDAYS($B$1,$B$1+A80,'Tabela de Feriados'!$A$2:$A$937)-1 -> 288 | C80: 0.1249
A81: 439 | B81: =NETWORKDAYS($B$1,$B$1+A81,'Tabela de Feriados'!$A$2:$A$937)-1 -> 300 | C81: 0.1246
A82: 440 | B82: =NETWORKDAYS($B$1,$B$1+A82,'Tabela de Feriados'!$A$2:$A$937)-1 -> 301 | C82: 0.1246
A83: 451 | B83: =NETWORKDAYS($B$1,$B$1+A83,'Tabela de Feriados'!$A$2:$A$937)-1 -> 308 | C83: 0.1244
A84: 454 | B84: =NETWORKDAYS($B$1,$B$1+A84,'Tabela de Feriados'!$A$2:$A$937)-1 -> 311 | C84: 0.1243
A85: 458 | B85: =NETWORKDAYS($B$1,$B$1+A85,'Tabela de Feriados'!$A$2:$A$937)-1 -> 313 | C85: 0.1243
A86: 472 | B86: =NETWORKDAYS($B$1,$B$1+A86,'Tabela de Feriados'!$A$2:$A$937)-1 -> 323 | C86: 0.1238
A87: 480 | B87: =NETWORKDAYS($B$1,$B$1+A87,'Tabela de Feriados'!$A$2:$A$937)-1 -> 329 | C87: 0.1235
A88: 501 | B88: =NETWORKDAYS($B$1,$B$1+A88,'Tabela de Feriados'!$A$2:$A$937)-1 -> 344 | C88: 0.1228
A89: 502 | B89: =NETWORKDAYS($B$1,$B$1+A89,'Tabela de Feriados'!$A$2:$A$937)-1 -> 345 | C89: 0.1227
A90: 510 | B90: =NETWORKDAYS($B$1,$B$1+A90,'Tabela de Feriados'!$A$2:$A$937)-1 -> 351 | C90: 0.1225
A91: 518 | B91: =NETWORKDAYS($B$1,$B$1+A91,'Tabela de Feriados'!$A$2:$A$937)-1 -> 357 | C91: 0.1222
A92: 532 | B92: =NETWORKDAYS($B$1,$B$1+A92,'Tabela de Feriados'!$A$2:$A$937)-1 -> 366 | C92: 0.1219
A93: 538 | B93: =NETWORKDAYS($B$1,$B$1+A93,'Tabela de Feriados'!$A$2:$A$937)-1 -> 370 | C93: 0.1217
A94: 542 | B94: =NETWORKDAYS($B$1,$B$1+A94,'Tabela de Feriados'!$A$2:$A$937)-1 -> 372 | C94: 0.1216
A95: 549 | B95: =NETWORKDAYS($B$1,$B$1+A95,'Tabela de Feriados'!$A$2:$A$937)-1 -> 377 | C95: 0.1215
A96: 563 | B96: =NETWORKDAYS($B$1,$B$1+A96,'Tabela de Feriados'!$A$2:$A$937)-1 -> 386 | C96: 0.1209
A97: 565 | B97: =NETWORKDAYS($B$1,$B$1+A97,'Tabela de Feriados'!$A$2:$A$937)-1 -> 388 | C97: 0.1208
A98: 570 | B98: =NETWORKDAYS($B$1,$B$1+A98,'Tabela de Feriados'!$A$2:$A$937)-1 -> 391 | C98: 0.1207
A99: 594 | B99: =NETWORKDAYS($B$1,$B$1+A99,'Tabela de Feriados'!$A$2:$A$937)-1 -> 407 | C99: 0.1198
A100: 600 | B100: =NETWORKDAYS($B$1,$B$1+A100,'Tabela de Feriados'!$A$2:$A$937)-1 -> 411 | C100: 0.1196
A101: 621 | B101: =NETWORKDAYS($B$1,$B$1+A101,'Tabela de Feriados'!$A$2:$A$937)-1 -> 426 | C101: 0.1189
A102: 627 | B102: =NETWORKDAYS($B$1,$B$1+A102,'Tabela de Feriados'!$A$2:$A$937)-1 -> 430 | C102: 0.1188
A103: 630 | B103: =NETWORKDAYS($B$1,$B$1+A103,'Tabela de Feriados'!$A$2:$A$937)-1 -> 433 | C103: 0.1186
A104: 641 | B104: =NETWORKDAYS($B$1,$B$1+A104,'Tabela de Feriados'!$A$2:$A$937)-1 -> 438 | C104: 0.1184
A105: 654 | B105: =NETWORKDAYS($B$1,$B$1+A105,'Tabela de Feriados'!$A$2:$A$937)-1 -> 447 | C105: 0.1181
A106: 661 | B106: =NETWORKDAYS($B$1,$B$1+A106,'Tabela de Feriados'!$A$2:$A$937)-1 -> 452 | C106: 0.1179
A107: 684 | B107: =NETWORKDAYS($B$1,$B$1+A107,'Tabela de Feriados'!$A$2:$A$937)-1 -> 467 | C107: 0.1174
A108: 685 | B108: =NETWORKDAYS($B$1,$B$1+A108,'Tabela de Feriados'!$A$2:$A$937)-1 -> 468 | C108: 0.1174
A109: 690 | B109: =NETWORKDAYS($B$1,$B$1+A109,'Tabela de Feriados'!$A$2:$A$937)-1 -> 471 | C109: 0.1173
A110: 720 | B110: =NETWORKDAYS($B$1,$B$1+A110,'Tabela de Feriados'!$A$2:$A$937)-1 -> 493 | C110: 0.1167
A111: 731 | B111: =NETWORKDAYS($B$1,$B$1+A111,'Tabela de Feriados'!$A$2:$A$937)-1 -> 499 | C111: 0.1165
A112: 745 | B112: =NETWORKDAYS($B$1,$B$1+A112,'Tabela de Feriados'!$A$2:$A$937)-1 -> 509 | C112: 0.1161
A113: 752 | B113: =NETWORKDAYS($B$1,$B$1+A113,'Tabela de Feriados'!$A$2:$A$937)-1 -> 514 | C113: 0.1159
A114: 775 | B114: =NETWORKDAYS($B$1,$B$1+A114,'Tabela de Feriados'!$A$2:$A$937)-1 -> 530 | C114: 0.1154
A115: 780 | B115: =NETWORKDAYS($B$1,$B$1+A115,'Tabela de Feriados'!$A$2:$A$937)-1 -> 533 | C115: 0.1153
A116: 810 | B116: =NETWORKDAYS($B$1,$B$1+A116,'Tabela de Feriados'!$A$2:$A$937)-1 -> 554 | C116: 0.1146
A117: 822 | B117: =NETWORKDAYS($B$1,$B$1+A117,'Tabela de Feriados'!$A$2:$A$937)-1 -> 562 | C117: 0.1143
A118: 840 | B118: =NETWORKDAYS($B$1,$B$1+A118,'Tabela de Feriados'!$A$2:$A$937)-1 -> 576 | C118: 0.114
A119: 867 | B119: =NETWORKDAYS($B$1,$B$1+A119,'Tabela de Feriados'!$A$2:$A$937)-1 -> 595 | C119: 0.1136
A120: 871 | B120: =NETWORKDAYS($B$1,$B$1+A120,'Tabela de Feriados'!$A$2:$A$937)-1 -> 597 | C120: 0.1135
A121: 900 | B121: =NETWORKDAYS($B$1,$B$1+A121,'Tabela de Feriados'!$A$2:$A$937)-1 -> 618 | C121: 0.1131
A122: 914 | B122: =NETWORKDAYS($B$1,$B$1+A122,'Tabela de Feriados'!$A$2:$A$937)-1 -> 628 | C122: 0.1129
A123: 923 | B123: =NETWORKDAYS($B$1,$B$1+A123,'Tabela de Feriados'!$A$2:$A$937)-1 -> 635 | C123: 0.1127
A124: 930 | B124: =NETWORKDAYS($B$1,$B$1+A124,'Tabela de Feriados'!$A$2:$A$937)-1 -> 640 | C124: 0.1126
A125: 962 | B125: =NETWORKDAYS($B$1,$B$1+A125,'Tabela de Feriados'!$A$2:$A$937)-1 -> 661 | C125: 0.1122
A126: 990 | B126: =NETWORKDAYS($B$1,$B$1+A126,'Tabela de Feriados'!$A$2:$A$937)-1 -> 681 | C126: 0.1118
A127: 1007 | B127: =NETWORKDAYS($B$1,$B$1+A127,'Tabela de Feriados'!$A$2:$A$937)-1 -> 692 | C127: 0.1116
A128: 1020 | B128: =NETWORKDAYS($B$1,$B$1+A128,'Tabela de Feriados'!$A$2:$A$937)-1 -> 701 | C128: 0.1115
A129: 1050 | B129: =NETWORKDAYS($B$1,$B$1+A129,'Tabela de Feriados'!$A$2:$A$937)-1 -> 723 | C129: 0.1113
A130: 1053 | B130: =NETWORKDAYS($B$1,$B$1+A130,'Tabela de Feriados'!$A$2:$A$937)-1 -> 724 | C130: 0.1113
A131: 1081 | B131: =NETWORKDAYS($B$1,$B$1+A131,'Tabela de Feriados'!$A$2:$A$937)-1 -> 742 | C131: 0.1111
A132: 1096 | B132: =NETWORKDAYS($B$1,$B$1+A132,'Tabela de Feriados'!$A$2:$A$937)-1 -> 753 | C132: 0.111
A133: 1110 | B133: =NETWORKDAYS($B$1,$B$1+A133,'Tabela de Feriados'!$A$2:$A$937)-1 -> 763 | C133: 0.111
A134: 1127 | B134: =NETWORKDAYS($B$1,$B$1+A134,'Tabela de Feriados'!$A$2:$A$937)-1 -> 773 | C134: 0.1109
A135: 1140 | B135: =NETWORKDAYS($B$1,$B$1+A135,'Tabela de Feriados'!$A$2:$A$937)-1 -> 782 | C135: 0.1109
A136: 1172 | B136: =NETWORKDAYS($B$1,$B$1+A136,'Tabela de Feriados'!$A$2:$A$937)-1 -> 804 | C136: 0.1108
A137: 1187 | B137: =NETWORKDAYS($B$1,$B$1+A137,'Tabela de Feriados'!$A$2:$A$937)-1 -> 814 | C137: 0.1107
A138: 1200 | B138: =NETWORKDAYS($B$1,$B$1+A138,'Tabela de Feriados'!$A$2:$A$937)-1 -> 823 | C138: 0.1106
A139: 1232 | B139: =NETWORKDAYS($B$1,$B$1+A139,'Tabela de Feriados'!$A$2:$A$937)-1 -> 847 | C139: 0.1104
A140: 1279 | B140: =NETWORKDAYS($B$1,$B$1+A140,'Tabela de Feriados'!$A$2:$A$937)-1 -> 880 | C140: 0.1102
A141: 1326 | B141: =NETWORKDAYS($B$1,$B$1+A141,'Tabela de Feriados'!$A$2:$A$937)-1 -> 913 | C141: 0.11
A142: 1372 | B142: =NETWORKDAYS($B$1,$B$1+A142,'Tabela de Feriados'!$A$2:$A$937)-1 -> 945 | C142: 0.1099
A143: 1419 | B143: =NETWORKDAYS($B$1,$B$1+A143,'Tabela de Feriados'!$A$2:$A$937)-1 -> 976 | C143: 0.1098
A144: 1440 | B144: =NETWORKDAYS($B$1,$B$1+A144,'Tabela de Feriados'!$A$2:$A$937)-1 -> 991 | C144: 0.1098
A145: 1461 | B145: =NETWORKDAYS($B$1,$B$1+A145,'Tabela de Feriados'!$A$2:$A$937)-1 -> 1006 | C145: 0.1097
A146: 1505 | B146: =NETWORKDAYS($B$1,$B$1+A146,'Tabela de Feriados'!$A$2:$A$937)-1 -> 1035 | C146: 0.1097
A147: 1552 | B147: =NETWORKDAYS($B$1,$B$1+A147,'Tabela de Feriados'!$A$2:$A$937)-1 -> 1067 | C147: 0.1097
A148: 1599 | B148: =NETWORKDAYS($B$1,$B$1+A148,'Tabela de Feriados'!$A$2:$A$937)-1 -> 1100 | C148: 0.11
A149: 1644 | B149: =NETWORKDAYS($B$1,$B$1+A149,'Tabela de Feriados'!$A$2:$A$937)-1 -> 1132 | C149: 0.1103
A150: 1690 | B150: =NETWORKDAYS($B$1,$B$1+A150,'Tabela de Feriados'!$A$2:$A$937)-1 -> 1162 | C150: 0.1101
A151: 1739 | B151: =NETWORKDAYS($B$1,$B$1+A151,'Tabela de Feriados'!$A$2:$A$937)-1 -> 1195 | C151: 0.1098
A152: 1781 | B152: =NETWORKDAYS($B$1,$B$1+A152,'Tabela de Feriados'!$A$2:$A$937)-1 -> 1223 | C152: 0.1098
A153: 1802 | B153: =NETWORKDAYS($B$1,$B$1+A153,'Tabela de Feriados'!$A$2:$A$937)-1 -> 1238 | C153: 0.1098
A154: 1826 | B154: =NETWORKDAYS($B$1,$B$1+A154,'Tabela de Feriados'!$A$2:$A$937)-1 -> 1255 | C154: 0.1099
A155: 1872 | B155: =NETWORKDAYS($B$1,$B$1+A155,'Tabela de Feriados'!$A$2:$A$937)-1 -> 1286 | C155: 0.1099
A156: 1917 | B156: =NETWORKDAYS($B$1,$B$1+A156,'Tabela de Feriados'!$A$2:$A$937)-1 -> 1318 | C156: 0.1099
A157: 1963 | B157: =NETWORKDAYS($B$1,$B$1+A157,'Tabela de Feriados'!$A$2:$A$937)-1 -> 1350 | C157: 0.1099
A158: 2055 | B158: =NETWORKDAYS($B$1,$B$1+A158,'Tabela de Feriados'!$A$2:$A$937)-1 -> 1412 | C158: 0.11
A159: 2103 | B159: =NETWORKDAYS($B$1,$B$1+A159,'Tabela de Feriados'!$A$2:$A$937)-1 -> 1446 | C159: 0.11
A160: 2146 | B160: =NETWORKDAYS($B$1,$B$1+A160,'Tabela de Feriados'!$A$2:$A$937)-1 -> 1477 | C160: 0.1102
A161: 2161 | B161: =NETWORKDAYS($B$1,$B$1+A161,'Tabela de Feriados'!$A$2:$A$937)-1 -> 1486 | C161: 0.1102
A162: 2236 | B162: =NETWORKDAYS($B$1,$B$1+A162,'Tabela de Feriados'!$A$2:$A$937)-1 -> 1536 | C162: 0.1104
A163: 2285 | B163: =NETWORKDAYS($B$1,$B$1+A163,'Tabela de Feriados'!$A$2:$A$937)-1 -> 1570 | C163: 0.1106
A164: 2328 | B164: =NETWORKDAYS($B$1,$B$1+A164,'Tabela de Feriados'!$A$2:$A$937)-1 -> 1601 | C164: 0.1107
A165: 2421 | B165: =NETWORKDAYS($B$1,$B$1+A165,'Tabela de Feriados'!$A$2:$A$937)-1 -> 1664 | C165: 0.111
A166: 2468 | B166: =NETWORKDAYS($B$1,$B$1+A166,'Tabela de Feriados'!$A$2:$A$937)-1 -> 1695 | C166: 0.1111
A167: 2512 | B167: =NETWORKDAYS($B$1,$B$1+A167,'Tabela de Feriados'!$A$2:$A$937)-1 -> 1725 | C167: 0.1112
A168: 2520 | B168: =NETWORKDAYS($B$1,$B$1+A168,'Tabela de Feriados'!$A$2:$A$937)-1 -> 1731 | C168: 0.1112
A169: 2601 | B169: =NETWORKDAYS($B$1,$B$1+A169,'Tabela de Feriados'!$A$2:$A$937)-1 -> 1786 | C169: 0.1113
A170: 2649 | B170: =NETWORKDAYS($B$1,$B$1+A170,'Tabela de Feriados'!$A$2:$A$937)-1 -> 1819 | C170: 0.1114
A171: 2679 | B171: =NETWORKDAYS($B$1,$B$1+A171,'Tabela de Feriados'!$A$2:$A$937)-1 -> 1841 | C171: 0.1115
A172: 2693 | B172: =NETWORKDAYS($B$1,$B$1+A172,'Tabela de Feriados'!$A$2:$A$937)-1 -> 1851 | C172: 0.1115
A173: 2786 | B173: =NETWORKDAYS($B$1,$B$1+A173,'Tabela de Feriados'!$A$2:$A$937)-1 -> 1914 | C173: 0.1116
A174: 2833 | B174: =NETWORKDAYS($B$1,$B$1+A174,'Tabela de Feriados'!$A$2:$A$937)-1 -> 1945 | C174: 0.1117
A175: 2877 | B175: =NETWORKDAYS($B$1,$B$1+A175,'Tabela de Feriados'!$A$2:$A$937)-1 -> 1977 | C175: 0.1118
A176: 2880 | B176: =NETWORKDAYS($B$1,$B$1+A176,'Tabela de Feriados'!$A$2:$A$937)-1 -> 1978 | C176: 0.1118
A177: 2922 | B177: =NETWORKDAYS($B$1,$B$1+A177,'Tabela de Feriados'!$A$2:$A$937)-1 -> 2006 | C177: 0.1119
A178: 2966 | B178: =NETWORKDAYS($B$1,$B$1+A178,'Tabela de Feriados'!$A$2:$A$937)-1 -> 2036 | C178: 0.1119
A179: 3013 | B179: =NETWORKDAYS($B$1,$B$1+A179,'Tabela de Feriados'!$A$2:$A$937)-1 -> 2068 | C179: 0.112
A180: 3058 | B180: =NETWORKDAYS($B$1,$B$1+A180,'Tabela de Feriados'!$A$2:$A$937)-1 -> 2101 | C180: 0.1121
A181: 3153 | B181: =NETWORKDAYS($B$1,$B$1+A181,'Tabela de Feriados'!$A$2:$A$937)-1 -> 2167 | C181: 0.1122
A182: 3198 | B182: =NETWORKDAYS($B$1,$B$1+A182,'Tabela de Feriados'!$A$2:$A$937)-1 -> 2198 | C182: 0.1123
A183: 3240 | B183: =NETWORKDAYS($B$1,$B$1+A183,'Tabela de Feriados'!$A$2:$A$937)-1 -> 2228 | C183: 0.1123
A184: 3244 | B184: =NETWORKDAYS($B$1,$B$1+A184,'Tabela de Feriados'!$A$2:$A$937)-1 -> 2230 | C184: 0.1123
A185: 3331 | B185: =NETWORKDAYS($B$1,$B$1+A185,'Tabela de Feriados'!$A$2:$A$937)-1 -> 2288 | C185: 0.1124
A186: 3423 | B186: =NETWORKDAYS($B$1,$B$1+A186,'Tabela de Feriados'!$A$2:$A$937)-1 -> 2353 | C186: 0.1125
A187: 3517 | B187: =NETWORKDAYS($B$1,$B$1+A187,'Tabela de Feriados'!$A$2:$A$937)-1 -> 2419 | C187: 0.1125
A188: 3563 | B188: =NETWORKDAYS($B$1,$B$1+A188,'Tabela de Feriados'!$A$2:$A$937)-1 -> 2451 | C188: 0.1126
A189: 3603 | B189: =NETWORKDAYS($B$1,$B$1+A189,'Tabela de Feriados'!$A$2:$A$937)-1 -> 2477 | C189: 0.1126
A190: 3608 | B190: =NETWORKDAYS($B$1,$B$1+A190,'Tabela de Feriados'!$A$2:$A$937)-1 -> 2480 | C190: 0.1126
A191: 3699 | B191: =NETWORKDAYS($B$1,$B$1+A191,'Tabela de Feriados'!$A$2:$A$937)-1 -> 2543 | C191: 0.1127
A192: 3790 | B192: =NETWORKDAYS($B$1,$B$1+A192,'Tabela de Feriados'!$A$2:$A$937)-1 -> 2607 | C192: 0.1127
A193: 3882 | B193: =NETWORKDAYS($B$1,$B$1+A193,'Tabela de Feriados'!$A$2:$A$937)-1 -> 2669 | C193: 0.1128
A194: 3930 | B194: =NETWORKDAYS($B$1,$B$1+A194,'Tabela de Feriados'!$A$2:$A$937)-1 -> 2703 | C194: 0.1128
A195: 3960 | B195: =NETWORKDAYS($B$1,$B$1+A195,'Tabela de Feriados'!$A$2:$A$937)-1 -> 2725 | C195: 0.1128
A196: 3973 | B196: =NETWORKDAYS($B$1,$B$1+A196,'Tabela de Feriados'!$A$2:$A$937)-1 -> 2734 | C196: 0.1129
A197: 4063 | B197: =NETWORKDAYS($B$1,$B$1+A197,'Tabela de Feriados'!$A$2:$A$937)-1 -> 2794 | C197: 0.1129
A198: 4154 | B198: =NETWORKDAYS($B$1,$B$1+A198,'Tabela de Feriados'!$A$2:$A$937)-1 -> 2858 | C198: 0.113
A199: 4247 | B199: =NETWORKDAYS($B$1,$B$1+A199,'Tabela de Feriados'!$A$2:$A$937)-1 -> 2921 | C199: 0.1131
A200: 4294 | B200: =NETWORKDAYS($B$1,$B$1+A200,'Tabela de Feriados'!$A$2:$A$937)-1 -> 2954 | C200: 0.1132
A201: 4322 | B201: =NETWORKDAYS($B$1,$B$1+A201,'Tabela de Feriados'!$A$2:$A$937)-1 -> 2974 | C201: 0.1132
... 69 more rows
